Cogmind - Beta 13 @@@ ROGUE MODE // 2024.04.03 @ 10:09:01 Player: Razor Feather Result: Destroyed by ME-NYP(R) with Subdweller Machine Gun Performance ------------- Evolutions (0) 0 Regions Visited (2) 400 Robots Destroyed (18) 90 Value Destroyed (611) 611 Prototype IDs (0) 0 Alien Tech Used (0) 0 Bonus (-150) -150 TOTAL SCORE: 951 Bonus ------- Friendly Fire -150 Cogmind --------- Core Integrity 0/250 Matter 86/300 Energy 199/200 System Corruption 0% Temperature Cool (0) Movement Core (250) Ox4 Location -10/Subcaves Parts ------- > --- POWER (1) -------- Subdweller Power Source > --- PROPULSION (2) --- (None) > --- UTILITY (2) ------ Small Storage Unit Hacking Suite > --- WEAPON (2) ------- Rocket Launcher > --- INVENTORY (8) ---- High-capacity Matter Pod (0) Scrap Shield Light Assault Rifle Rocket Launcher Rocket Launcher Peak State ------------ > --- POWER ------------ Subdweller Power Source > --- PROPULSION ------- Spiked Treads > --- UTILITY ---------- Small Storage Unit Hacking Suite > --- WEAPON ----------- EM Pulse Gun Rocket Launcher > --- INVENTORY -------- High-capacity Matter Pod Scrap Shield Light Assault Rifle Rocket Launcher Rocket Launcher Rocket Launcher [Rating: 12] Favorites ----------- Power Ion Engine Engine Ion Engine Propulsion Light Treads Treads Light Treads Utility Small Storage Unit Device Structural Scanner Storage Small Storage Unit Hackware Hacking Suite Weapon Light Assault Rifle Energy Gun EM Pulse Gun Ballistic Gun Light Assault Rifle Ballistic Cannon Light Cannon Launcher Rocket Launcher Build | -11 -10 -10 ------- Run | Yrd Mat Sub Slots Evolved . | . . . Power . | . . . Propulsion . | . . . Utility . | . . . Weapon . | . . . Parts Attached 14 | 5 4 5 Power 2 | 1 . 1 Engine 2 | 1 . 1 Core . | . . . Reactor . | . . . Propulsion 3 | 2 . 1 Treads 3 | 2 . 1 Leg . | . . . Wheel . | . . . Hover . | . . . Flight . | . . . Utility 3 | 1 2 . Device 1 | . 1 . Storage 1 | 1 . . Processor . | . . . Hackware 1 | . 1 . Protection . | . . . Artifact . | . . . Weapon 6 | 1 2 3 Energy Gun 1 | . . 1 Energy Cannon . | . . . Ballistic Gun 1 | 1 . . Ballistic Cannon 1 | . 1 . Launcher 3 | . 1 2 Special Weapon . | . . . Impact Weapon . | . . . Slashing Weapon . | . . . Piercing Weapon . | . . . Special Melee Weapon . | . . . Unidentified Prototypes . | . . . Parts Lost 7 | . . 7 Power 1 | . . 1 Propulsion 3 | . . 3 Utility . | . . . Weapon 3 | . . 3 Highest Loss Streak 4 | . . 4 To Critical Strikes . | . . . Average Slot Usage (%) 95 | . 98 92 Engine 13 | . 14 12 Treads 25 | . 28 23 Device 6 | . 11 . Storage 14 | . 14 14 Hackware 7 | . 1 14 Ballistic Gun 12 | . 14 10 Ballistic Cannon 2 | . 4 . Launcher 11 | . 9 14 Naked Turns . | . . . Heaviest Build 16 | 11 16 16 Greatest Support 40 | 40 40 40 Greatest Overweight (x) 5 | . . 5 Average Overweight (x) . | . . . Largest Inventory Capacity 8 | 8 8 8 Average Capacity 7 | 5 8 8 Most Carried 8 | 5 8 8 Average Carried 7 | 3 7 7 Final Capacity 8 | 8 8 8 Final Carried 8 | 3 8 6 Class Distribution -------------------- 100% | Mutant Dominant Class ---------------- Mutant | -10/Materials Mutant | -10/Subcaves Resources | -11 -10 -10 ----------- Run | Yrd Mat Sub Matter Collected 387 | 202 110 75 Remotely . | . . . Salvage Created 359 | . 167 192 Parts 38 | . 21 17 Haulers Intercepted . | . . . Recyclers Shooed . | . . . Parts Field Recycled . | . . . Retrieved Matter . | . . . Parts Self-Destructed . | . . . Prevented . | . . . Kills | -11 -10 -10 ------- Run | Yrd Mat Sub Combat Hostiles Destroyed 16 | . 7 9 Guns 3 | . 2 1 Cannons 1 | . 1 . AOE 12 | . 4 8 Classes Destroyed 6 | . 4 2 Operator 1 | . 1 . Watcher 1 | . 1 . Swarmer 3 | . 3 . Grunt 4 | . 4 . Artisan 1 | . . 1 Subdweller 9 | . . 9 Best Kill Streak 6 | . 3 6 Combat Bots Only 6 | . 3 6 Max Kills in Single Turn 4 | . 2 4 Gunslinging . | . . . Exploded 4 | . 2 4 Melee . | . . . Uniques/NPCs Destroyed . | . . . Combat | -11 -10 -10 -------- Run | Yrd Mat Sub Hostile Shots Fired 72 | . 13 59 Missed 16 | . 2 14 Damage Taken 1146 | . 136 1010 Core 271 | . . 271 Absorbed by Shields . | . . . Core Remaining (%) 100 | 100 . . Volleys Fired 45 | . 26 19 Largest 2 | . 2 2 Hottest 73 | . 55 73 Shots Fired 60 | . 36 24 Gun 34 | . 25 9 Cannon 3 | . 3 . Launcher 23 | . 8 15 Special . | . . . Kinetic 34 | . 28 6 Thermal . | . . . Explosive 23 | . 8 15 Electromagnetic 3 | . . 3 Robot Hit Streak 5 | . 5 5 Robot Miss Streak 3 | . 2 3 Penetration Max . | . . . Secondary Targets . | . . . Shots Hit Robots 31 | . 18 13 Core Hits 37 | . 14 23 Critical Kills . | . . . Critical Parts Destroyed . | . . . Critical Strikes . | . . . Melee Attacks . | . . . Impact . | . . . Slashing . | . . . Piercing . | . . . Sneak Attacks . | . . . Combat Hostiles . | . . . Follow-up Attacks . | . . . Damage Inflicted 1983 | . 368 1615 Guns 157 | . 110 47 Cannons 16 | . 16 . Explosions 1810 | . 242 1568 Melee . | . . . Ramming . | . . . Kinetic 152 | . 126 26 Thermal . | . . . Explosive 1810 | . 242 1568 Electromagnetic 21 | . . 21 Impact . | . . . Slashing . | . . . Piercing . | . . . Highest Corruption . | . . . Average Corruption . | . . . Corruption Purged . | . . . Corruption Blocked . | . . . Overload Shots . | . . . Overflow Damage 33 | . . 33 Projectiles . | . . . Explosions 33 | . . 33 Melee . | . . . Knockbacks 2 | . 2 . Impact . | . . . Kinetic 1 | . 1 . Secondary 1 | . 1 . Self-Inflicted Damage 83 | . 33 50 Shots 3 | . 1 2 Rammed . | . . . Targets Rammed . | . . . Kicked . | . . . Crushed . | . . . Highest Temperature 30 | . 30 . Average Temperature 13 | . 13 . Received Heat Transfer 195 | . 24 171 Siege Activations . | . . . Robots Corrupted . | . . . Combat Hostiles . | . . . Parts Fried . | . . . Impact Corruptions . | . . . Robots Melted . | . . . Combat Hostiles . | . . . Parts Melted . | . . . Heat Transferred . | . . . Parts Sabotaged . | . . . Parts Stolen . | . . . Parts Stripped . | . . . Power Chain Reactions . | . . . Alert | -11 -10 -10 ------- Run | Yrd Mat Sub Peak Influence 314 | . 314 . Initial . | . . . Average 133 | . 154 . Maximum Alert Level 1 | . 1 . Low Security (%) 73 | 100 69 . Level 1 26 | . 30 . Level 2 . | . . . Level 3 . | . . . Level 4 . | . . . Level 5 . | . . . High Security . | . . . Max Security . | . . . Squads Dispatched 1 | . 1 . Investigation . | . . . Extermination . | . . . Reinforcement 1 | . 1 . Assault . | . . . Garrison . | . . . Intercept . | . . . Searches Triggered . | . . . Construction Impeded . | . . . Haulers Reinforced . | . . . Active Scanning Responses . | . . . Cargo Convoy Interrupts . | . . . Stealth | -11 -10 -10 --------- Run | Yrd Mat Sub Distress Signals . | . . . Communications Jammed . | . . . Distress Signals . | . . . Times Spotted 27 | . 15 12 Peak Tracking Total 6 | . 4 6 Tactical Retreats . | . . . Traps | -11 -10 -10 ------- Run | Yrd Mat Sub Traps Triggered . | . . . Indirectly . | . . . Trap Hack Attempts . | . . . Triggered . | . . . Disarmed 6 | . 6 . Reprogrammed . | . . . Reused . | . . . Traps Extracted . | . . . Installed . | . . . Triggered . | . . . Machines | -11 -10 -10 ---------- Run | Yrd Mat Sub Machines Disabled 4 | . 4 . Max in Single Turn 2 | . 2 . Machines Repaired . | . . . Machines Dismantled . | . . . Machines Sabotaged . | . . . Overloaded Fab Kills . | . . . Hacking | -11 -10 -10 --------- Run | Yrd Mat Sub Machines Accessed 1 | . 1 . Terminals 1 | . 1 . Fabricators . | . . . Repair Stations . | . . . Recycling Units . | . . . Scanalyzers . | . . . Garrison Access . | . . . Total Hacks 3 | . 3 . Successful 3 | . 3 . Failed . | . . . Catastrophic . | . . . Database Lockouts . | . . . Manual . | . . . Terminals 3 | . 3 . Fabricators . | . . . Repair Stations . | . . . Recycling Units . | . . . Scanalyzers . | . . . Garrison Access . | . . . Terminal Hacks 3 | . 3 . Record 1 | . 1 . Disarm Traps 1 | . 1 . Maintenance Status 1 | . 1 . Fabricator Hacks . | . . . Repair Station Hacks . | . . . Recycling Unit Hacks . | . . . Scanalyzer . | . . . Garrison Access Hacks . | . . . Unauthorized Hacks . | . . . Terminals . | . . . Fabricators . | . . . Repair Stations . | . . . Recycling Units . | . . . Scanalyzers . | . . . Garrison Access . | . . . Data Cores Recovered . | . . . Used . | . . . Hacking Detections . | . . . Full Trace Events . | . . . Feedback Events . | . . . Feedback Blocked . | . . . Robot Schematics Acquired . | . . . Robots Built . | . . . Authchips . | . . . Time . | . . . Total Robot Build Rating . | . . . Part Schematics Acquired . | . . . Parts Built . | . . . Authchips . | . . . Time . | . . . Total Part Build Rating . | . . . Parts Repaired . | . . . Time . | . . . Parts Recycled . | . . . Recycled Matter . | . . . Retrieved Matter . | . . . Retrieved Components . | . . . Parts Scanalyzed . | . . . Part Schematics Acquired . | . . . Parts Damaged . | . . . Bothacking | -11 -10 -10 ------------ Run | Yrd Mat Sub Used RIF Installer . | . . . Robots Hacked . | . . . Non-combat . | . . . Combat . | . . . Robot Hacks Applied . | . . . Relay Couplers Released . | . . . Fabnet Peak Effective % . | . . . Robots Rewired . | . . . Allies Hacked . | . . . Hacks Repelled . | . . . Allies | -11 -10 -10 -------- Run | Yrd Mat Sub Total Allies . | . . . Largest Group . | . . . Highest-Rated Group . | . . . Highest-Rated Ally . | . . . Total Orders . | . . . Ally Attacks . | . . . Total Damage . | . . . Kills . | . . . Allies Corrupted . | . . . Allies Melted . | . . . Intel | -11 -10 -10 ------- Run | Yrd Mat Sub Robot Analysis Total . | . . . Derelict Logs Recovered . | . . . Drone Launches . | . . . Drone Recoveries . | . . . Exploration | -11 -10 -10 ------------- Run | Yrd Mat Sub Turns Passed 924 | 77 471 376 Spaces Moved 494 | 49 244 201 Core 19 | 12 . 7 Treads 475 | 37 244 194 Legs . | . . . Wheels . | . . . Hover . | . . . Flight . | . . . Fastest Speed 50 | 50 160 160 Average Speed 158 | 133 160 162 Slowest Speed 300 | 160 160 300 Overloaded Moves . | . . . Propulsion Burnouts . | . . . Robots Hopped . | . . . Cave-ins Triggered . | . . . Exploration Rate (%) 16 | 3 36 10 Regions Visited 2 Branch Regions 1 Pre-discovered Areas . | . . . Known Exits Taken . | . . . Unknown Exits Taken 2 | 1 1 . Scrap Searched . | . . . Spaces Dug 20 | . 11 9 Terrain Destroyed 140 | . 66 74 Melee . | . . . Projectile . | . . . AOE 140 | . 66 74 Terrain Rammed . | . . . Walls Destroyed . | . . . Machines Disabled . | . . . Actions | -11 -10 -10 --------- Run | Yrd Mat Sub Total 587 | 61 297 229 Wait 1 | . 1 . Move 492 | 48 243 201 Hop . | . . . Pick Up 25 | 8 15 2 Fast Attach 1 | . . 1 Attach 10 | 5 2 3 Detach . | . . . Swap 3 | . 2 1 Drop 10 | . 8 2 Fire 45 | . 26 19 Melee . | . . . Ram . | . . . Kick . | . . . Crush . | . . . Escape Stasis . | . . . Rewire . | . . . Trap . | . . . Miscellaneous . | . . . Route ------- -11/Scrapyard -10/Materials (discovered 2 exits: [*Mat] / [*Sub]) -10/Subcaves History --------- Turn | Location | Event 5 | -11/Scrapyard | Discovered new exit (range 16) 78 | -11/Scrapyard | Entered Materials 148 | -10/Materials | Discovered new exit (range 12) 314 | -10/Materials | Build established: Mutant 349 | -10/Materials | Discovered new exit (range 16) 549 | -10/Materials | Entered Subcaves 709 | -10/Subcaves | Ambushed by Subdweller buried in earth 719 | -10/Subcaves | Ambushed by angry Subdweller bent on revenge 872 | -10/Subcaves | Core integrity fell below 50% 898 | -10/Subcaves | Lost 4 parts (1p2n1w) 909 | -10/Subcaves | Ambushed by swarm of Subdwellers 916 | -10/Subcaves | Core integrity fell below 20% 918 | -10/Subcaves | Ambushed by Subdwellers from Twisted Machinery 925 | -10/Subcaves | Destroyed by ME-NYP(R) with Subdweller Machine Gun Last Messages --------------- Subatomizers dissect the Sub. Monowheel. The unstable cave ceiling collapses. A mess of Twisted Machinery falls from the cavern ceiling. RN-W0N(R) comes tumbling into view. S0-W0U(R) emerges from the Twisted Machinery. V2-1T2(R) emerges from the Twisted Machinery. G9-SRU(R) emerges from the Twisted Machinery. K0-YQK(R) emerges from the Twisted Machinery. ME-NYP(R) emerges from the Twisted Machinery. EM Pulse Gun destroyed. G9-SRU(R) destroyed. RN-W0N(R) destroyed. K0-YQK(R) destroyed. S0-W0U(R) destroyed. YX-PKU(R) angrily emerges from the Twisted Machinery. Rocket Launcher destroyed. Spk. Treads destroyed. V2-1T2(R) destroyed. YX-PKU(R) destroyed. Subatomizers dissect the Sub. Monowheel. Map ----- +----------------------------------------------------+ | ?????????????????????????????????????????????????? | | ?????????????????????????????????????????????????? | | ?????????????????????????????????????????????????? | | ?????????????????????????????????????????????????? | | ?????????????????????????????????????????????????? | | ?????????????????????????????????????????????????? | | ?????????????????????????????????????????????????? | | ?????????????????????????????????????????????????? | | ?????????????????????????????????????????????????? | | ?????????????????????????????????????????????????? | | ?????????????????????????????????????????????????? | | ?????????????????????????????????????????????????? | | ?????????????????????????????????????????????????? | | ?????????????????????????????????????????????????? | | ?????????????????????????????????????????????????? | | ????????????????????????????????????## ??????????? | | ??????????????????????????????????? ??????????? | | ?????????????????????????????????? ????????????? | | ??????????????????####??????????? ?????????????? | | ?????????????????"# ####????## #??????????????? | | ?????????????#""" "" #???# ???????????????? | | ????????????##""" #### #????????????????? | | ????????????#""""# "" #;# #????????????????? | | ???????????##""""???## #????????????????? | | ???????????? ##### #????????????????? | | ????????????## ""## ! @ #????????????????? | | ????????????# "=R # #????????????????? | | ????????????# = " ] ### #???? ??????????? | | ????????????## & R * ?? ?? ##????????? | | ?????????????# | *%& #??? #????????? | | ?????????????# ! &=! ###??? ???????? | | ?????????????# & & ##??? ????????? | | ?????????????# !# #???? ?????????? | | ?????????????# ##??? #??????????? | | ?????????????# ##?# ### ???????? | | ?????????????# ## ## ????????? | | ??????####??## # ## #?????????????? | | ?????##" ## # #### #??????????????? | | ###??# """? # ###??# ####??????????????? | | #?## #??" ###????#" ##????????????????? | | ### #??#"#???####" ### #????????????????? | | ## #?##"##### ### ###?## ##???????????????? | | ### # ##"#?####????# #???????????????? | | ### ## " ##????????# #???????????????? | | # # ##?###?### ###?????????????? | | ####### # ### ### ##????????????? | | ??????# " # #????????????? | | ??????#""" & #????????????? | | ??????#"" " ! & ##????????????? | | ??????#"""# "# # " =* ####?????????????? | +----------------------------------------------------+ Best States ------------- Heat Dissipation 25 Energy Generation 15 Energy Capacity 250 Matter Stores 252 Matter Capacity 300 Sight Range 16 Terrain Scan Density 10 Evasion (%) 50 Recoil Reduction 2 Offensive Hacking 10 Item Schematics ----------------- None Robot Schematics ------------------ None Fabricated ------------ Nothing Alien Tech Used ----------------- None Achievements -------------- None Challenges ------------ None Game ------ Seed PointyXenonExtractor Manual? 0 Play Time 00:18:12 Cumulative 4.4 hours Start 2024.04.03 @ 09:51:52 End 2024.04.03 @ 10:09:01 Sessions 1 Manual Loads 0 Difficulty Rogue Special Mode None Game No. 5 Rogue 5 Adventurer 0 Explorer 0 Win Type - Total 0 Types 0/0/0/0/0/0/0/0/0 Lore% 1 Gallery% 11 Achievement% 8 Wizard Run 0 Options --------- Layout 0 ASCII 0 Keyboard 0 Movement Arrows Keybinds 0 Fullscreen 1 Font 18/SmallcapsGlow Map View 76x50 Zoom Use 0% Tactical HUD 0 Map Filters NONE Filters NONE Steam 1 RUN: b88a4c01-480d-4575-a5d1-f274d455df8a